Cogmind - Beta 13 @@@ ROGUE MODE // 2024.05.28 @ 10:01:20 Player: Zeldest Result: Destroyed by D-53 Grenadier with Mini Grenade Launcher Performance ------------- Evolutions (0) 0 Regions Visited (2) 400 Robots Destroyed (15) 75 Value Destroyed (386) 386 Prototype IDs (0) 0 Alien Tech Used (0) 0 Bonus (-11) -11 TOTAL SCORE: 850 Bonus ------- Follower Combat Kills 14 Friendly Fire -25 Cogmind --------- Core Integrity 0/250 Matter 300/300 Energy 100/100 System Corruption 6% Temperature Cool (0) Movement Core (50) Location -10/Mines Parts ------- > --- POWER (1) -------- (None) > --- PROPULSION (2) --- (None) > --- UTILITY (2) ------ Signal Interpreter > --- WEAPON (2) ------- (None) > --- INVENTORY (5) ---- Aluminum Leg Improved Terrain Scanner Power Shielding Assault Rifle Datajack Peak State ------------ > --- POWER ------------ Light Ion Engine > --- PROPULSION ------- Light Treads Light Treads > --- UTILITY ---------- High-capacity Storage Unit Sensor Array > --- WEAPON ----------- Assault Rifle Assault Rifle > --- INVENTORY -------- Wheel Small Storage Unit Signal Interpreter Improved Terrain Scanner Light Armor Plating Assault Rifle Datajack Hammer [Rating: 8] Favorites ----------- Power Light Ion Engine Engine Light Ion Engine Propulsion Light Treads Treads Light Treads Utility High-capacity Storage Unit Device Sensor Array Storage High-capacity Storage Unit Processor Signal Interpreter Weapon Assault Rifle Ballistic Gun Assault Rifle Build | -11 -10 -10 ------- Run | Yrd Mat Min Slots Evolved . | . . . Power . | . . . Propulsion . | . . . Utility . | . . . Weapon . | . . . Parts Attached 11 | 6 5 . Power 2 | 1 1 . Engine 2 | 1 1 . Core . | . . . Reactor . | . . . Propulsion 3 | 2 1 . Treads 3 | 2 1 . Leg . | . . . Wheel . | . . . Hover . | . . . Flight . | . . . Utility 4 | 1 3 . Device 1 | . 1 . Storage 2 | 1 1 . Processor 1 | . 1 . Hackware . | . . . Protection . | . . . Artifact . | . . . Weapon 2 | 2 . . Energy Gun . | . . . Energy Cannon . | . . . Ballistic Gun 2 | 2 . . Ballistic Cannon . | . . . Launcher . | . . . Special Weapon . | . . . Impact Weapon . | . . . Slashing Weapon . | . . . Piercing Weapon . | . . . Special Melee Weapon . | . . . Unidentified Prototypes . | . . . Parts Lost 5 | . 1 4 Power 2 | . 1 1 Propulsion 1 | . . 1 Utility . | . . . Weapon 2 | . . 2 Highest Loss Streak 4 | . 1 4 To Critical Strikes . | . . . Average Slot Usage (%) 97 | . 97 98 Engine 13 | . 13 14 Treads 27 | . 27 27 Device 5 | . 5 . Storage 13 | . 14 13 Processor 7 | . 6 14 Ballistic Gun 27 | . 28 27 Naked Turns . | . . . Heaviest Build 50 | 12 50 49 Greatest Support 40 | 40 40 40 Greatest Overweight (x) 1 | . 1 1 Average Overweight (x) . | . . . Largest Inventory Capacity 20 | 8 20 20 Average Capacity 14 | 7 16 19 Most Carried 13 | 5 13 13 Average Carried 7 | 3 7 12 Final Capacity 20 | 8 20 5 Final Carried 12 | 3 12 5 Class Distribution -------------------- 100% | Mutant Dominant Class ---------------- Mutant | -10/Materials Mutant | -10/Mines Resources | -11 -10 -10 ----------- Run | Yrd Mat Min Matter Collected 657 | 275 336 46 Remotely . | . . . Salvage Created 487 | 45 425 17 Parts 34 | 7 24 3 Haulers Intercepted . | . . . Recyclers Shooed . | . . . Parts Field Recycled . | . . . Retrieved Matter . | . . . Parts Self-Destructed . | . . . Prevented . | . . . Kills | -11 -10 -10 ------- Run | Yrd Mat Min Combat Hostiles Destroyed 13 | . 12 1 Guns 13 | . 12 1 Classes Destroyed 3 | 1 2 . Tunneler 2 | 2 . . Swarmer 4 | . 3 1 Grunt 9 | . 9 . Best Kill Streak 3 | 1 3 1 Combat Bots Only 3 | . 3 1 Max Kills in Single Turn 1 | 1 1 1 Gunslinging . | . . . Exploded . | . . . Melee . | . . . Uniques/NPCs Destroyed . | . . . Combat | -11 -10 -10 -------- Run | Yrd Mat Min Hostile Shots Fired 65 | . 51 14 Missed 13 | . 11 2 Damage Taken 917 | . 426 491 Core 264 | . 105 159 Absorbed by Shields . | . . . Regen/Repaired (Parts) 127 | . 127 . Core Remaining (%) 100 | 100 . . Volleys Fired 50 | 5 41 4 Largest 2 | 2 2 2 Hottest 40 | 40 40 40 Shots Fired 100 | 10 82 8 Gun 100 | 10 82 8 Cannon . | . . . Launcher . | . . . Special . | . . . Kinetic 100 | 10 82 8 Thermal . | . . . Explosive . | . . . Electromagnetic . | . . . Robot Hit Streak 10 | 5 10 5 Robot Miss Streak 3 | 1 3 2 Penetration Max . | . . . Secondary Targets 1 | . . 1 Max Gunslinging Chain 1 | . . 1 Shots Hit Robots 64 | 6 53 5 Core Hits 24 | 2 20 2 Critical Kills . | . . . Critical Parts Destroyed . | . . . Critical Strikes . | . . . Melee Attacks . | . . . Impact . | . . . Slashing . | . . . Piercing . | . . . Sneak Attacks . | . . . Combat Hostiles . | . . . Follow-up Attacks . | . . . Damage Inflicted 845 | 78 683 84 Guns 845 | 78 683 84 Cannons . | . . . Explosions . | . . . Melee . | . . . Ramming . | . . . Kinetic 845 | 78 683 84 Thermal . | . . . Explosive . | . . . Electromagnetic . | . . . Impact . | . . . Slashing . | . . . Piercing . | . . . Highest Corruption 6 | . 6 6 Average Corruption 3 | . 2 6 Corruption Purged . | . . . Corruption Blocked . | . . . Effects 44 | . 35 9 Message Errors 12 | . 10 2 Matter Fused 10 | . 8 2 Heat Flow Errors 7 | . 4 3 Energy Discharges 9 | . 7 2 Data Loss (minor) 2 | . 2 . Data Loss (major) 1 | . 1 . Alerts 3 | . 3 . Overload Shots . | . . . Overflow Damage . | . . . Projectiles . | . . . Explosions . | . . . Melee . | . . . Knockbacks . | . . . Impact . | . . . Kinetic . | . . . Secondary . | . . . Self-Inflicted Damage . | . . . Shots . | . . . Rammed . | . . . Targets Rammed . | . . . Kicked . | . . . Crushed . | . . . Highest Temperature 214 | . 214 207 Average Temperature 89 | . 87 91 Received Heat Transfer 192 | . 192 . Siege Activations . | . . . Robots Corrupted . | . . . Combat Hostiles . | . . . Parts Fried . | . . . Impact Corruptions . | . . . Robots Melted . | . . . Combat Hostiles . | . . . Parts Melted . | . . . Heat Transferred . | . . . Parts Sabotaged . | . . . Parts Stolen . | . . . Parts Stripped . | . . . Power Chain Reactions . | . . . Alert | -11 -10 -10 ------- Run | Yrd Mat Min Peak Influence 143 | 10 143 87 Initial 6 | . 6 6 Average 25 | . 36 36 Maximum Alert Level . | . . . Low Security (%) 100 | 100 100 100 Level 1 . | . . . Level 2 . | . . . Level 3 . | . . . Level 4 . | . . . Level 5 . | . . . High Security . | . . . Max Security . | . . . Squads Dispatched 3 | . 3 . Investigation 1 | . 1 . Extermination . | . . . Reinforcement 2 | . 2 . Assault . | . . . Garrison . | . . . Intercept . | . . . Searches Triggered . | . . . Construction Impeded . | . . . Haulers Reinforced . | . . . Active Scanning Responses . | . . . Cargo Convoy Interrupts . | . . . Stealth | -11 -10 -10 --------- Run | Yrd Mat Min Distress Signals 2 | . 2 . Communications Jammed . | . . . Distress Signals . | . . . Times Spotted 33 | . 28 5 Peak Tracking Total 3 | . 3 3 Tactical Retreats . | . . . Traps | -11 -10 -10 ------- Run | Yrd Mat Min Traps Triggered 4 | . 4 . Indirectly . | . . . Trap Hack Attempts . | . . . Triggered . | . . . Disarmed . | . . . Reprogrammed . | . . . Reused . | . . . Traps Extracted . | . . . Installed . | . . . Triggered . | . . . Machines | -11 -10 -10 ---------- Run | Yrd Mat Min Machines Disabled . | . . . Max in Single Turn . | . . . Machines Repaired . | . . . Machines Dismantled . | . . . Machines Sabotaged . | . . . Overloaded Fab Kills . | . . . Hacking | -11 -10 -10 --------- Run | Yrd Mat Min Machines Accessed 9 | . 9 . Terminals 6 | . 6 . Fabricators . | . . . Repair Stations 1 | . 1 . Recycling Units 2 | . 2 . Scanalyzers . | . . . Garrison Access . | . . . Total Hacks 37 | . 37 . Successful 25 | . 25 . Failed 12 | . 12 . Catastrophic . | . . . Database Lockouts . | . . . Manual 25 | . 25 . Terminals 28 | . 28 . Fabricators . | . . . Repair Stations 4 | . 4 . Recycling Units 5 | . 5 . Scanalyzers . | . . . Garrison Access . | . . . Terminal Hacks 2 | . 2 . Record 1 | . 1 . Investigation Status 1 | . 1 . Fabricator Hacks . | . . . Repair Station Hacks 3 | . 3 . Scan Component 2 | . 2 . Repair 1 | . 1 . Recycling Unit Hacks 2 | . 2 . Report Inventory 1 | . 1 . Retrieve Components 1 | . 1 . Scanalyzer . | . . . Garrison Access Hacks . | . . . Unauthorized Hacks 18 | . 18 . Terminals 16 | . 16 . Track 2 | . 2 . Assimilate 5 | . 5 . Botnet 6 | . 6 . Operators 3 | . 3 . Fabricators . | . . . Repair Stations . | . . . Recycling Units 2 | . 2 . Reject 1 | . 1 . Mask 1 | . 1 . Scanalyzers . | . . . Garrison Access . | . . . Data Cores Recovered . | . . . Used . | . . . Hacking Detections 8 | . 8 . Full Trace Events 1 | . 1 . Feedback Events . | . . . Feedback Blocked . | . . . Robot Schematics Acquired . | . . . Robots Built . | . . . Authchips . | . . . Time . | . . . Total Robot Build Rating . | . . . Part Schematics Acquired . | . . . Parts Built . | . . . Authchips . | . . . Time . | . . . Total Part Build Rating . | . . . Parts Repaired 1 | . 1 . Time 26 | . 26 . Parts Recycled . | . . . Recycled Matter . | . . . Retrieved Matter . | . . . Retrieved Components 1 | . 1 . Parts Scanalyzed . | . . . Part Schematics Acquired . | . . . Parts Damaged . | . . . Bothacking | -11 -10 -10 ------------ Run | Yrd Mat Min Used RIF Installer . | . . . Robots Hacked . | . . . Non-combat . | . . . Combat . | . . . Robot Hacks Applied . | . . . Relay Couplers Released . | . . . Fabnet Peak Effective % . | . . . Robots Rewired . | . . . Allies Hacked . | . . . Hacks Repelled . | . . . Allies | -11 -10 -10 -------- Run | Yrd Mat Min Total Allies 3 | . . 3 Largest Group 3 | . . 3 Highest-Rated Group 40 | . . 40 Highest-Rated Ally 16 | . . 16 Total Orders . | . . . Ally Attacks 14 | . . 14 Total Damage 103 | . . 103 Kills 2 | . . 2 Allies Corrupted . | . . . Allies Melted . | . . . Intel | -11 -10 -10 ------- Run | Yrd Mat Min Robot Analysis Total . | . . . Derelict Logs Recovered . | . . . Drone Launches . | . . . Drone Recoveries . | . . . Exploration | -11 -10 -10 ------------- Run | Yrd Mat Min Turns Passed 4170 | 1245 2543 382 Spaces Moved 1476 | 286 1037 153 Core 23 | 20 . 3 Treads 1453 | 266 1037 150 Legs . | . . . Wheels . | . . . Hover . | . . . Flight . | . . . Fastest Speed 50 | 50 160 100 Average Speed 199 | 152 207 236 Slowest Speed 240 | 160 240 240 Overloaded Moves . | . . . Propulsion Burnouts . | . . . Robots Hopped . | . . . Cave-ins Triggered . | . . . Exploration Rate (%) 51 | 32 95 27 Regions Visited 2 Branch Regions 1 Pre-discovered Areas . | . . . Known Exits Taken 1 | . 1 . Unknown Exits Taken 1 | 1 . . Scrap Searched . | . . . Spaces Dug . | . . . Terrain Destroyed . | . . . Melee . | . . . Projectile . | . . . AOE . | . . . Terrain Rammed . | . . . Walls Destroyed . | . . . Machines Disabled . | . . . Actions | -11 -10 -10 --------- Run | Yrd Mat Min Total 2602 | 1086 1350 166 Wait 1041 | 781 254 6 Move 1474 | 285 1036 153 Hop . | . . . Pick Up 23 | 9 13 1 Fast Attach . | . . . Attach 9 | 6 3 . Detach . | . . . Swap 2 | . 2 . Drop 3 | . 1 2 Fire 50 | 5 41 4 Melee . | . . . Ram . | . . . Kick . | . . . Crush . | . . . Escape Stasis . | . . . Rewire . | . . . Trap . | . . . Miscellaneous . | . . . Route ------- -11/Scrapyard -10/Materials (discovered 3 exits: *Mat x2 / *Min) -10/Mines History --------- Turn | Location | Event 2 | -11/Scrapyard | Met Revision 17 5 | -11/Scrapyard | Discovered new exit (range 15) 1246 | -11/Scrapyard | Entered Materials 1247 | -10/Materials | Build established: Mutant 1272 | -10/Materials | Discovered new exit (range 14) 1598 | -10/Materials | Discovered new exit (range 8) 2673 | -10/Materials | Discovered new exit (range 9) 2691 | -10/Materials | Identified exit to Materials 3604 | -10/Materials | Repaired Lgt. Treads 3623 | -10/Materials | Identified exit to Mines 3789 | -10/Materials | Entered Mines 3986 | -10/Mines | Assisted by bots powering up and referring to "LRC-V3" 4142 | -10/Mines | Assembled infested the area 4147 | -10/Mines | Assisted by a Guerilla fighting off Assembled 4160 | -10/Mines | Core integrity fell below 50% 4168 | -10/Mines | Core integrity fell below 20% 4171 | -10/Mines | Destroyed by D-53 Grenadier with Mini Grenade Launcher Last Messages --------------- 04158_ System corrupted: Energy discharge (-60). 04159_ Mercenary 1a destroyed. 04159_ Trooper 1a destroyed. 04159_ Trooper 1b destroyed. 04159_ K-01 Serf destroyed. 04161_ The unstable cave ceiling collapses. 04161_ Assault Rifle destroyed. 04162_ U-05 Engineer lays Concrete. 04165_ The unstable cave ceiling collapses. 04165_ Lgt. Treads destroyed. 04166_ The unstable cave ceiling collapses. 04166_ U-05 Engineer lays Concrete. 04166_ Dropped Hcp. Storage Unit. 04167_ The unstable cave ceiling collapses. 04167_ U-05 Engineer lays Concrete. 04167_ Assault Rifle destroyed. 04167_ U-05 Engineer destroyed. 04168_ Dropped Lgt. Treads. 04169_ The unstable cave ceiling collapses. 04171_ Ion Engine destroyed. Map ----- +----------------------------------------------------+ | ??????????????????????# ! #??# == * | | ??????????????????????# = *#??##### [ =### | | ??????????????????????### ##???# #?# | | ????????????????????????#### ##???# ## #?# | | ??????????????????????????## ###?# #########?? | | ??????????????????????????# ### #?????????? | | ??????????????????????????# #?????????? | | ??????????????????????????# [## ### #?????????? | | ??????????????????????????# #####?# #?????????? | | ??????????????????????????## ##?????# #?????????? | | ???????????????????????????# ##??????# #?????????? | | ?????????????###???????????# #??###### #?????????? | | ???????????### #??????????# #### #?????????? | | ??????????## #?#######?# ## r### #?????????? | | ?????## ### ## ### # ### #?????????? | | ????? #?????????? | | ??????# #######?????????? | | ??????????# ###### #???????????????? | | ??????????# ##???## ##???????????????? | | ??????????## ## ##???## ##????????????????? | | ???????????#???## ##??### ##?????????????????? | | ????????????????###???## ##??????????????????? | | ??????????????????????# ##???????????????????? | | ?????????????????????## ###???????????????????? | | ?????????????????????# ##??????????????????? | | ????????????????????## @ #??????????????????? | | ????????????????????# ! ##?????????????????? | | ????????????????????# #?????????????????? | | ????????????????????# / = #?????????????????? | | ????????????????????# ! ##????????????????? | | ????????????????????# !! # # #??????????????? | | ????????????????????# #??????????????? | | ????????????????????### = d [ #????????? | | ?????????????????????## %d ! ???????? | | ??????????????????????# # ! %" ???????? | | ??????????????????????##### # # [ ????????? | | ???????????????????????????#### ????????? | | ??????????????????????????????? ####### ????????? | | ????????????????????????????????#????????????????? | | ?????????????????????????????????????????????????? | | ?????????????????????????????????????????????????? | | ?????????????????????????????????????????????????? | | ?????????????????????????????????????????????????? | | ?????????????????????????????????????????????????? | | ?????????????????????????????????????????????????? | | ?????????????????????????????????????????????????? | | ?????????????????????????????????????????????????? | | ?????????????????????????????????????????????????? | | ?????????????????????????????????????????????????? | | ?????????????????????????????????????????????????? | +----------------------------------------------------+ Best States ------------- Heat Dissipation 25 Energy Generation 10 Energy Capacity 250 Matter Stores 300 Matter Capacity 300 Sight Range 16 Robot Scan Range 14 Terrain Scan Density 10 Evasion (%) 50 Recoil Reduction 2 Item Schematics ----------------- None Robot Schematics ------------------ None Fabricated ------------ Nothing Alien Tech Used ----------------- None Achievements -------------- None Challenges ------------ None Game ------ Seed EnhancedWeaponsMatter Manual? 0 Play Time 00:23:50 Cumulative 33.2 hours Start 2024.05.28 @ 09:37:04 End 2024.05.28 @ 10:01:20 Sessions 1 Manual Loads 0 Difficulty Rogue Special Mode None Game No. 68 Rogue 68 Adventurer 0 Explorer 0 Win Type - Total 0 Types 0/0/0/0/0/0/0/0/0 Lore% 20 Gallery% 30 Achievement% 26 Wizard Run 0 Options --------- Layout 1 ASCII 0 Keyboard 0 Movement Numpad Keybinds 0 Fullscreen 1 Font 24/Smallcaps Map View 50x35 Zoom Use 0% Tactical HUD 1 Map Filters NONE Filters NONE Steam 1 RUN: f3fae48b-96e5-4333-86dd-e8f1c0b25817